[Event "FIDE Women's Grand Swiss 2023"]
[Site "Villa Marina, Douglas, Isle of Man, Isle Of Man"]
[Date "2023.10.26"]
[Round "2.8"]
[White "Goryachkina, Aleksandra"]
[Black "Guichard, Pauline"]
[Result "1/2-1/2"]
[TimeControl "40/90 + 30 + 30s/move"]
[WhiteFideId "4147103"]
[BlackFideId "639370"]
[WhiteElo "2558"]
[BlackElo "2358"]

1. c4 {[%clk 01:30:51]} {[%emt 00:00:08]} Nf6 {[%clk 01:30:46]} {[%emt
00:00:14]} 2. Nc3 {[%clk 01:31:08]} {[%emt 00:00:13]} e5 {[%clk 01:31:01]}
{[%emt 00:00:15]} 3. Nf3 {[%clk 01:31:07]} {[%emt 00:00:32]} Nc6 {[%clk
01:31:16]} {[%emt 00:00:15]} 4. e4 {[%clk 01:30:47]} {[%emt 00:00:49]} Bb4
{[%clk 01:30:48]} {[%emt 00:00:58]} 5. d3 {[%clk 01:30:35]} {[%emt 00:00:42]}
d6 {[%clk 01:31:08]} {[%emt 00:00:10]} 6. a3 {[%clk 01:30:47]} {[%emt
00:00:18]} Bc5 {[%clk 01:31:15]} {[%emt 00:00:23]} 7. b4 {[%clk 01:29:30]}
{[%emt 00:01:47]} Bb6 {[%clk 01:31:06]} {[%emt 00:00:39]} 8. Na4 {[%clk
01:29:13]} {[%emt 00:00:47]} Bg4 {[%clk 01:30:22]} {[%emt 00:01:14]} 9. Be2
{[%clk 01:24:03]} {[%emt 00:05:41]} Bxf3 {[%clk 01:29:32]} {[%emt 00:01:20]} 10.
Bxf3 {[%clk 01:24:09]} {[%emt 00:00:24]} Bd4 {[%clk 01:29:55]} {[%emt
00:00:07]} 11. Rb1 {[%clk 01:24:05]} {[%emt 00:00:34]} a6 {[%clk 01:30:16]}
{[%emt 00:00:09]} 12. Bd2 {[%clk 01:23:25]} {[%emt 00:01:09]} Ba7 {[%clk
01:27:54]} {[%emt 00:02:52]} 13. O-O {[%clk 01:20:45]} {[%emt 00:03:10]} Nd4
{[%clk 01:21:40]} {[%emt 00:06:44]} 14. Kh1 {[%clk 01:19:43]} {[%emt 00:01:31]}
O-O {[%clk 00:59:00]} {[%emt 00:23:09]} 15. Be2 {[%clk 01:18:47]} {[%emt
00:01:27]} Qd7 {[%clk 00:56:55]} {[%emt 00:02:35]} 16. Nc3 {[%clk 01:18:17]}
{[%emt 00:01:00]} c6 {[%clk 00:57:15]} {[%emt 00:00:09]} 17. f4 {[%clk
01:08:27]} {[%emt 00:10:19]} Nxe2 {[%clk 00:49:14]} {[%emt 00:08:31]} 18. Qxe2
{[%clk 01:07:50]} {[%emt 00:01:08]} Qg4 {[%clk 00:49:23]} {[%emt 00:00:22]} 19.
Qe1 {[%clk 00:59:13]} {[%emt 00:09:07]} Nh5 {[%clk 00:44:14]} {[%emt 00:05:39]}
20. f5 {[%clk 00:52:02]} {[%emt 00:07:41]} Nf4 {[%clk 00:40:23]} {[%emt
00:04:21]} 21. Bxf4 {[%clk 00:51:40]} {[%emt 00:00:52]} exf4 {[%clk 00:40:48]}
{[%emt 00:00:05]} 22. Qe2 {[%clk 00:51:01]} {[%emt 00:01:10]} Qh4 {[%clk
00:33:26]} {[%emt 00:07:52]} 23. Qf3 {[%clk 00:49:30]} {[%emt 00:02:00]} g5
{[%clk 00:30:50]} {[%emt 00:03:06]} 24. Ne2 {[%clk 00:45:03]} {[%emt 00:04:57]}
Be3 {[%clk 00:28:06]} {[%emt 00:03:14]} 25. g3 {[%clk 00:44:38]} {[%emt
00:00:55]} fxg3 {[%clk 00:27:52]} {[%emt 00:00:45]} 26. Nxg3 {[%clk 00:44:22]}
{[%emt 00:00:46]} Bf4 {[%clk 00:28:02]} {[%emt 00:00:20]} 27. Rg1 {[%clk
00:42:48]} {[%emt 00:02:03]} f6 {[%clk 00:14:51]} {[%emt 00:13:41]} 28. Rg2
{[%clk 00:41:26]} {[%emt 00:01:52]} Bxg3 {[%clk 00:14:03]} {[%emt 00:01:18]} 29.
Rxg3 {[%clk 00:41:16]} {[%emt 00:00:40]} Qh6 {[%clk 00:12:56]} {[%emt
00:01:37]} 30. Rbg1 {[%clk 00:40:23]} {[%emt 00:01:23]} Kh8 {[%clk 00:11:02]}
{[%emt 00:02:23]} 31. Qf2 {[%clk 00:36:36]} {[%emt 00:04:17]} Rad8 {[%clk
00:07:22]} {[%emt 00:04:10]} 32. Qb2 {[%clk 00:27:08]} {[%emt 00:09:58]} Qg7
{[%clk 00:07:21]} {[%emt 00:00:32]} 33. h4 {[%clk 00:27:05]} {[%emt 00:00:33]}
Qh6 {[%clk 00:02:14]} {[%emt 00:05:37]} 34. Qh2 {[%clk 00:26:35]} {[%emt
00:01:00]} gxh4 {[%clk 00:02:19]} {[%emt 00:00:25]} 35. Rg4 {[%clk 00:26:26]}
{[%emt 00:00:38]} Rg8 {[%clk 00:00:50]} {[%emt 00:02:00]} 36. Qxd6 {[%clk
00:23:13]} {[%emt 00:03:42]} h3 {[%clk 00:00:34]} {[%emt 00:00:46]} 37. Qg3
{[%clk 00:13:45]} {[%emt 00:09:57]} Rxg4 {[%clk 00:00:39]} {[%emt 00:00:26]} 38.
Qxg4 {[%clk 00:14:14]} {[%emt 00:00:02]} h2 {[%clk 00:00:36]} {[%emt 00:00:32]}
39. Rg3 {[%clk 00:13:57]} {[%emt 00:00:46]} b5 {[%clk 00:00:51]} {[%emt
00:00:16]} 40. c5 {[%clk 00:11:51]} {[%emt 00:02:36]} Ra8 {[%clk 00:00:32]}
{[%emt 00:00:49]} 41. Qh3 {[%clk 00:03:46]} {[%emt 00:08:34]} Qc1+ {[%clk
00:25:21]} {[%emt 00:05:41]} 42. Kxh2 {[%clk 00:34:04]} {[%emt 00:00:12]} Qxa3
{[%clk 00:25:06]} {[%emt 00:00:45]} 43. Qh6 {[%clk 00:24:53]} {[%emt 00:09:40]}
Qb2+ {[%clk 00:14:40]} {[%emt 00:10:56]} 44. Rg2 {[%clk 00:24:21]} {[%emt
00:01:02]} Qe5+ {[%clk 00:15:03]} {[%emt 00:00:07]} 45. Kh3 {[%clk 00:24:09]}
{[%emt 00:00:42]} Rg8 {[%clk 00:15:17]} {[%emt 00:00:17]} 46. Rxg8+ {[%clk
00:19:56]} {[%emt 00:04:43]} Kxg8 {[%clk 00:15:41]} {[%emt 00:00:05]} 47. Qe3
{[%clk 00:20:00]} {[%emt 00:00:27]} Qc3 {[%clk 00:10:54]} {[%emt 00:05:17]} 48.
Qg3+ {[%clk 00:20:03]} {[%emt 00:00:27]} Kf7 {[%clk 00:08:16]} {[%emt
00:03:08]} 49. Qc7+ {[%clk 00:18:27]} {[%emt 00:02:06]} Kg8 {[%clk 00:08:35]}
{[%emt 00:00:10]} 50. Qd8+ {[%clk 00:15:07]} {[%emt 00:03:50]} Kf7 {[%clk
00:07:49]} {[%emt 00:01:16]} 51. Qd7+ {[%clk 00:15:21]} {[%emt 00:00:16]} Kg8
{[%clk 00:04:29]} {[%emt 00:03:50]} 52. Qd6 {[%clk 00:14:37]} {[%emt 00:01:14]}
Qa1 {[%clk 00:04:00]} {[%emt 00:00:59]} 53. Kg2 {[%clk 00:14:06]} {[%emt
00:01:01]} Qb2+ {[%clk 00:03:44]} {[%emt 00:00:47]} 54. Kf3 {[%clk 00:14:12]}
{[%emt 00:00:24]} Qa1 {[%clk 00:03:34]} {[%emt 00:00:40]} 55. Qxc6 {[%clk
00:09:18]} {[%emt 00:05:24]} Qf1+ {[%clk 00:03:19]} {[%emt 00:00:44]} 56. Ke3
{[%clk 00:09:41]} {[%emt 00:00:07]} Qe1+ {[%clk 00:03:26]} {[%emt 00:00:24]} 57.
Kd4 {[%clk 00:08:51]} {[%emt 00:01:19]} Qa1+ {[%clk 00:03:41]} {[%emt
00:00:15]} 58. Ke3 {[%clk 00:09:11]} {[%emt 00:00:10]} Qe1+ {[%clk 00:04:07]}
{[%emt 00:00:04]} 1/2-1/2

[Event "FIDE Women's Grand Swiss 2023"]
[Site "Villa Marina, Douglas, Isle of Man, Isle Of Man"]
[Date "2023.10.26"]
[Round "2.9"]
[White "Beydullayeva, Govhar"]
[Black "Kosteniuk, Alexandra"]
[Result "1/2-1/2"]
[TimeControl "40/90 + 30 + 30s/move"]
[WhiteFideId "13413015"]
[BlackFideId "4128125"]
[WhiteElo "2383"]
[BlackElo "2523"]

1. d4 {[%clk 01:30:58]} {[%emt 00:00:01]} d5 {[%clk 01:30:50]} {[%emt
00:00:10]} 2. c4 {[%clk 01:31:24]} {[%emt 00:00:04]} c6 {[%clk 01:31:16]}
{[%emt 00:00:04]} 3. Nf3 {[%clk 01:31:48]} {[%emt 00:00:06]} Nf6 {[%clk
01:31:35]} {[%emt 00:00:12]} 4. Nc3 {[%clk 01:32:10]} {[%emt 00:00:09]} dxc4
{[%clk 01:31:48]} {[%emt 00:00:16]} 5. a4 {[%clk 01:32:18]} {[%emt 00:00:22]}
Bf5 {[%clk 01:31:30]} {[%emt 00:00:48]} 6. Ne5 {[%clk 01:31:03]} {[%emt
00:01:45]} Nbd7 {[%clk 01:31:41]} {[%emt 00:00:18]} 7. Nxc4 {[%clk 01:31:12]}
{[%emt 00:00:21]} Nb6 {[%clk 01:31:53]} {[%emt 00:00:17]} 8. Ne5 {[%clk
01:31:15]} {[%emt 00:00:28]} a5 {[%clk 01:31:48]} {[%emt 00:00:35]} 9. f3
{[%clk 01:30:48]} {[%emt 00:00:57]} Nfd7 {[%clk 01:31:00]} {[%emt 00:01:17]} 10.
Nxd7 {[%clk 01:30:02]} {[%emt 00:01:17]} Bxd7 {[%clk 01:30:04]} {[%emt
00:01:26]} 11. e4 {[%clk 01:28:03]} {[%emt 00:02:28]} e6 {[%clk 01:30:14]}
{[%emt 00:00:20]} 12. Be3 {[%clk 01:23:25]} {[%emt 00:05:08]} Bd6 {[%clk
01:30:10]} {[%emt 00:00:34]} 13. Be2 {[%clk 01:20:01]} {[%emt 00:03:54]} Qc7
{[%clk 01:25:31]} {[%emt 00:05:08]} 14. Kf2 {[%clk 01:13:24]} {[%emt 00:07:08]}
O-O {[%clk 01:07:19]} {[%emt 00:18:42]} 15. Rc1 {[%clk 01:10:51]} {[%emt
00:03:03]} Qd8 {[%clk 01:04:37]} {[%emt 00:03:12]} 16. g3 {[%clk 01:06:44]}
{[%emt 00:04:37]} f5 {[%clk 00:53:37]} {[%emt 00:11:30]} 17. Kg2 {[%clk
01:05:15]} {[%emt 00:01:59]} Kh8 {[%clk 00:39:04]} {[%emt 00:15:03]} 18. Qb3
{[%clk 01:01:49]} {[%emt 00:03:56]} Nc8 {[%clk 00:38:50]} {[%emt 00:00:44]} 19.
Rhd1 {[%clk 00:59:52]} {[%emt 00:02:28]} Rb8 {[%clk 00:38:18]} {[%emt
00:01:02]} 20. Nb1 {[%clk 00:42:55]} {[%emt 00:17:26]} Qe8 {[%clk 00:36:57]}
{[%emt 00:01:51]} 21. Qc2 {[%clk 00:32:24]} {[%emt 00:11:02]} fxe4 {[%clk
00:30:36]} {[%emt 00:06:50]} 22. fxe4 {[%clk 00:27:45]} {[%emt 00:05:09]} Bb4
{[%clk 00:25:24]} {[%emt 00:05:42]} 23. Nd2 {[%clk 00:21:44]} {[%emt 00:06:32]}
Nd6 {[%clk 00:24:53]} {[%emt 00:01:00]} 24. Nf3 {[%clk 00:21:15]} {[%emt
00:00:59]} Nf7 {[%clk 00:22:03]} {[%emt 00:03:20]} 25. Bd2 {[%clk 00:13:56]}
{[%emt 00:07:50]} c5 {[%clk 00:13:47]} {[%emt 00:08:46]} 26. Bxb4 {[%clk
00:11:07]} {[%emt 00:03:19]} cxb4 {[%clk 00:14:13]} {[%emt 00:00:04]} 27. b3
{[%clk 00:11:28]} {[%emt 00:00:09]} e5 {[%clk 00:11:58]} {[%emt 00:02:45]} 28.
d5 {[%clk 00:10:32]} {[%emt 00:01:26]} Nd6 {[%clk 00:12:11]} {[%emt 00:00:17]}
29. Nd2 {[%clk 00:09:26]} {[%emt 00:01:36]} Rc8 {[%clk 00:06:26]} {[%emt
00:06:15]} 30. Qb2 {[%clk 00:08:50]} {[%emt 00:01:06]} Qe7 {[%clk 00:04:05]}
{[%emt 00:02:51]} 31. Rxc8 {[%clk 00:08:09]} {[%emt 00:01:11]} Rxc8 {[%clk
00:03:57]} {[%emt 00:00:38]} 32. Rc1 {[%clk 00:08:28]} {[%emt 00:00:12]} Rxc1
{[%clk 00:03:09]} {[%emt 00:01:18]} 33. Qxc1 {[%clk 00:08:57]} Qg5 {[%clk
00:03:30]} {[%emt 00:00:09]} 34. Qc2 {[%clk 00:05:25]} {[%emt 00:04:02]} Qe3
{[%clk 00:02:32]} {[%emt 00:01:27]} 35. Nc4 {[%clk 00:05:24]} {[%emt 00:00:31]}
Qc3 {[%clk 00:02:19]} {[%emt 00:00:44]} 36. Qd3 {[%clk 00:02:56]} {[%emt
00:02:59]} Nxc4 {[%clk 00:01:53]} {[%emt 00:00:56]} 37. Qxc4 {[%clk 00:03:25]}
Qd2 {[%clk 00:00:39]} {[%emt 00:01:43]} 38. Qd3 {[%clk 00:02:13]} {[%emt
00:01:41]} Qb2 {[%clk 00:01:05]} {[%emt 00:00:04]} 39. Kf3 {[%clk 00:00:52]}
{[%emt 00:01:52]} h5 {[%clk 00:01:02]} {[%emt 00:00:33]} 40. Kf2 {[%clk
00:00:54]} {[%emt 00:00:28]} Bg4 {[%clk 00:00:50]} {[%emt 00:00:42]} 41. Kf1
{[%clk 00:21:35]} {[%emt 00:09:49]} Qc1+ {[%clk 00:25:45]} {[%emt 00:05:35]} 42.
Kg2 {[%clk 00:21:12]} {[%emt 00:00:53]} Qb2 {[%clk 00:24:32]} {[%emt 00:01:42]}
43. Kf1 {[%clk 00:21:35]} {[%emt 00:00:07]} Qc1+ {[%clk 00:24:54]} {[%emt
00:00:09]} 44. Kf2 {[%clk 00:16:09]} {[%emt 00:05:56]} Qb2 {[%clk 00:24:26]}
{[%emt 00:00:57]} 1/2-1/2

[Event "FIDE Women's Grand Swiss 2023"]
[Site "Villa Marina, Douglas, Isle of Man, Isle Of Man"]
[Date "2023.10.26"]
[Round "2.10"]
[White "Muzychuk, Mariya"]
[Black "Matnadze Bujiashvili, Ann"]
[Result "1-0"]
[TimeControl "40/90 + 30 + 30s/move"]
[WhiteFideId "14114550"]
[BlackFideId "13601377"]
[WhiteElo "2519"]
[BlackElo "2400"]

1. e4 {[%clk 01:30:56]} {[%emt 00:00:04]} c6 {[%clk 01:30:48]} {[%emt
00:00:13]} 2. Nf3 {[%clk 01:31:01]} {[%emt 00:00:24]} g6 {[%clk 01:30:48]}
{[%emt 00:00:30]} 3. d4 {[%clk 01:30:40]} {[%emt 00:00:51]} Bg7 {[%clk
01:30:59]} {[%emt 00:00:18]} 4. Nc3 {[%clk 01:30:35]} {[%emt 00:00:36]} d6
{[%clk 01:31:02]} {[%emt 00:00:27]} 5. Be3 {[%clk 01:28:17]} {[%emt 00:02:47]}
Nh6 {[%clk 01:29:03]} {[%emt 00:02:29]} 6. h3 {[%clk 01:25:08]} {[%emt
00:03:40]} f6 {[%clk 01:29:00]} {[%emt 00:00:33]} 7. Qd2 {[%clk 01:24:01]}
{[%emt 00:01:38]} Nf7 {[%clk 01:29:22]} {[%emt 00:00:07]} 8. O-O-O {[%clk
01:15:07]} {[%emt 00:09:24]} b5 {[%clk 01:24:12]} {[%emt 00:05:40]} 9. d5
{[%clk 01:13:40]} {[%emt 00:01:58]} b4 {[%clk 01:23:35]} {[%emt 00:01:08]} 10.
Ne2 {[%clk 01:13:57]} {[%emt 00:00:13]} Qa5 {[%clk 01:21:24]} {[%emt 00:02:41]}
11. Kb1 {[%clk 01:13:41]} {[%emt 00:00:46]} e5 {[%clk 01:10:17]} {[%emt
00:11:37]} 12. dxe6 {[%clk 01:12:13]} {[%emt 00:01:58]} Bxe6 {[%clk 01:10:44]}
{[%emt 00:00:03]} 13. a3 {[%clk 01:12:15]} {[%emt 00:00:29]} O-O {[%clk
00:58:22]} {[%emt 00:12:51]} 14. Qxb4 {[%clk 00:59:39]} {[%emt 00:13:07]} Qxb4
{[%clk 00:56:41]} {[%emt 00:02:11]} 15. axb4 {[%clk 01:00:05]} {[%emt
00:00:03]} a5 {[%clk 00:54:42]} {[%emt 00:02:29]} 16. Nf4 {[%clk 00:57:55]}
{[%emt 00:02:40]} Re8 {[%clk 00:53:53]} {[%emt 00:01:19]} 17. b5 {[%clk
00:55:37]} {[%emt 00:02:50]} cxb5 {[%clk 00:53:09]} {[%emt 00:01:14]} 18. Bxb5
{[%clk 00:49:41]} {[%emt 00:06:26]} Bd7 {[%clk 00:53:28]} {[%emt 00:00:10]} 19.
Bc4 {[%clk 00:48:26]} {[%emt 00:01:45]} Rxe4 {[%clk 00:44:28]} {[%emt
00:09:29]} 20. Bd5 {[%clk 00:44:14]} {[%emt 00:04:43]} Bc6 {[%clk 00:44:51]}
{[%emt 00:00:06]} 21. Bxe4 {[%clk 00:44:24]} {[%emt 00:00:21]} Bxe4 {[%clk
00:45:19]} {[%emt 00:00:02]} 22. Nd2 {[%clk 00:44:23]} {[%emt 00:00:31]} Bc6
{[%clk 00:41:44]} {[%emt 00:04:05]} 23. Nc4 {[%clk 00:43:55]} {[%emt 00:00:59]}
Na6 {[%clk 00:39:30]} {[%emt 00:02:44]} 24. Nxd6 {[%clk 00:35:01]} {[%emt
00:09:24]} Ne5 {[%clk 00:38:11]} {[%emt 00:01:49]} 25. Nd5 {[%clk 00:33:26]}
{[%emt 00:02:04]} a4 {[%clk 00:33:29]} {[%emt 00:05:13]} 26. Ne7+ {[%clk
00:30:23]} {[%emt 00:03:33]} Kf8 {[%clk 00:33:51]} {[%emt 00:00:07]} 27. Nxc6
{[%clk 00:30:50]} {[%emt 00:00:04]} Nxc6 {[%clk 00:34:15]} {[%emt 00:00:06]} 28.
Nc4 {[%clk 00:31:07]} {[%emt 00:00:13]} a3 {[%clk 00:33:06]} {[%emt 00:01:39]}
29. Nxa3 {[%clk 00:31:01]} {[%emt 00:00:36]} f5 {[%clk 00:32:22]} {[%emt
00:01:13]} 30. Rd6 {[%clk 00:30:40]} {[%emt 00:00:50]} Rc8 {[%clk 00:30:43]}
{[%emt 00:02:10]} 31. Re1 {[%clk 00:24:50]} {[%emt 00:06:21]} Kg8 {[%clk
00:29:58]} {[%emt 00:01:15]} 32. Nb5 {[%clk 00:20:47]} {[%emt 00:04:33]} Be5
{[%clk 00:28:06]} {[%emt 00:02:21]} 33. Na7 {[%clk 00:20:28]} {[%emt 00:00:49]}
Nxa7 {[%clk 00:25:49]} {[%emt 00:02:47]} 34. Rxa6 {[%clk 00:20:49]} {[%emt
00:00:09]} Nc6 {[%clk 00:25:06]} {[%emt 00:01:13]} 35. Bc5 {[%clk 00:18:52]}
{[%emt 00:02:27]} Nb8 {[%clk 00:23:31]} {[%emt 00:02:05]} 36. Re6 {[%clk
00:18:40]} {[%emt 00:00:42]} Nd7 {[%clk 00:22:45]} {[%emt 00:01:15]} 37. R6xe5
{[%clk 00:18:55]} {[%emt 00:00:15]} 1-0

[Event "FIDE Women's Grand Swiss 2023"]
[Site "Villa Marina, Douglas, Isle of Man, Isle Of Man"]
[Date "2023.10.26"]
[Round "2.11"]
[White "Dronavalli, Harika"]
[Black "Hoang, Thanh Trang"]
[Result "1/2-1/2"]
[TimeControl "40/90 + 30 + 30s/move"]
[WhiteFideId "5015197"]
[BlackFideId "12400149"]
[WhiteElo "2502"]
[BlackElo "2398"]

1. d4 {[%clk 01:30:31]} {[%emt 00:00:28]} d5 {[%clk 01:29:28]} {[%emt
00:01:32]} 2. c4 {[%clk 01:29:42]} {[%emt 00:01:20]} e6 {[%clk 01:29:28]}
{[%emt 00:00:30]} 3. Nf3 {[%clk 01:29:43]} {[%emt 00:00:29]} a6 {[%clk
01:28:23]} {[%emt 00:01:35]} 4. Bg5 {[%clk 01:23:59]} {[%emt 00:06:14]} Be7
{[%clk 01:15:51]} {[%emt 00:13:02]} 5. Bxe7 {[%clk 01:23:58]} {[%emt 00:00:31]}
Qxe7 {[%clk 01:16:05]} {[%emt 00:00:15]} 6. Nbd2 {[%clk 01:23:31]} {[%emt
00:00:58]} Nf6 {[%clk 01:13:06]} {[%emt 00:03:30]} 7. Rc1 {[%clk 01:23:32]}
{[%emt 00:00:29]} O-O {[%clk 01:11:45]} {[%emt 00:01:51]} 8. e3 {[%clk
01:20:43]} {[%emt 00:03:20]} c5 {[%clk 01:04:02]} {[%emt 00:08:12]} 9. Be2
{[%clk 00:56:11]} {[%emt 00:25:03]} cxd4 {[%clk 00:58:33]} {[%emt 00:05:59]} 10.
exd4 {[%clk 00:54:18]} {[%emt 00:02:24]} Nc6 {[%clk 00:52:51]} {[%emt
00:06:12]} 11. O-O {[%clk 00:54:33]} {[%emt 00:00:15]} dxc4 {[%clk 00:50:42]}
{[%emt 00:02:38]} 12. Nxc4 {[%clk 00:54:58]} {[%emt 00:00:05]} Rd8 {[%clk
00:48:15]} {[%emt 00:02:56]} 13. Qb3 {[%clk 00:48:55]} {[%emt 00:06:34]} Rb8
{[%clk 00:46:41]} {[%emt 00:02:04]} 14. Nb6 {[%clk 00:40:20]} {[%emt 00:09:05]}
Bd7 {[%clk 00:44:31]} {[%emt 00:02:40]} 15. Rfd1 {[%clk 00:37:55]} {[%emt
00:02:54]} Be8 {[%clk 00:44:17]} {[%emt 00:00:44]} 16. a3 {[%clk 00:32:10]}
{[%emt 00:06:17]} Nd5 {[%clk 00:40:13]} {[%emt 00:04:33]} 17. Nxd5 {[%clk
00:29:09]} {[%emt 00:03:31]} Rxd5 {[%clk 00:39:45]} {[%emt 00:00:58]} 18. Bc4
{[%clk 00:24:49]} {[%emt 00:04:50]} Na5 {[%clk 00:33:56]} {[%emt 00:06:18]} 19.
Qe3 {[%clk 00:24:19]} {[%emt 00:00:59]} Nxc4 {[%clk 00:33:02]} {[%emt
00:01:25]} 20. Rxc4 {[%clk 00:24:45]} {[%emt 00:00:05]} Bb5 {[%clk 00:32:14]}
{[%emt 00:01:17]} 21. Rc3 {[%clk 00:19:31]} {[%emt 00:05:44]} Rbd8 {[%clk
00:31:14]} {[%emt 00:01:29]} 22. Re1 {[%clk 00:19:21]} {[%emt 00:00:40]} h6
{[%clk 00:29:21]} {[%emt 00:02:23]} 23. h3 {[%clk 00:19:14]} {[%emt 00:00:37]}
R5d6 {[%clk 00:25:19]} {[%emt 00:04:31]} 24. Rec1 {[%clk 00:14:26]} {[%emt
00:05:19]} Bc6 {[%clk 00:19:42]} {[%emt 00:06:07]} 25. Ne5 {[%clk 00:14:28]}
{[%emt 00:00:27]} Rxd4 {[%clk 00:19:14]} {[%emt 00:00:58]} 26. Nxc6 {[%clk
00:14:50]} {[%emt 00:00:09]} bxc6 {[%clk 00:19:31]} {[%emt 00:00:12]} 27. Rxc6
{[%clk 00:13:54]} {[%emt 00:01:26]} Qb7 {[%clk 00:18:10]} {[%emt 00:01:50]} 28.
R6c2 {[%clk 00:06:56]} {[%emt 00:07:27]} Rd1+ {[%clk 00:16:59]} {[%emt
00:01:41]} 29. Kh2 {[%clk 00:06:57]} {[%emt 00:00:30]} Qb8+ {[%clk 00:16:16]}
{[%emt 00:01:14]} 30. Qg3 {[%clk 00:06:37]} {[%emt 00:00:49]} Rxc1 {[%clk
00:15:59]} {[%emt 00:00:47]} 31. Qxb8 {[%clk 00:07:00]} {[%emt 00:00:08]} Rxb8
{[%clk 00:16:10]} {[%emt 00:00:18]} 32. Rxc1 {[%clk 00:07:26]} {[%emt
00:00:05]} Rxb2 {[%clk 00:16:27]} {[%emt 00:00:13]} 33. Rc6 {[%clk 00:07:50]}
{[%emt 00:00:06]} Rxf2 {[%clk 00:14:04]} {[%emt 00:02:53]} 34. Rxa6 {[%clk
00:08:17]} {[%emt 00:00:04]} Ra2 {[%clk 00:13:39]} {[%emt 00:00:54]} 35. a4
{[%clk 00:06:51]} {[%emt 00:01:57]} g5 {[%clk 00:11:59]} {[%emt 00:02:09]} 36.
a5 {[%clk 00:06:27]} {[%emt 00:00:56]} Kg7 {[%clk 00:11:50]} {[%emt 00:00:38]}
37. Ra7 {[%clk 00:05:50]} {[%emt 00:01:08]} h5 {[%clk 00:10:01]} {[%emt
00:02:19]} 38. Kg3 {[%clk 00:06:16]} {[%emt 00:00:04]} Kg6 {[%clk 00:08:02]}
{[%emt 00:02:28]} 39. a6 {[%clk 00:06:12]} {[%emt 00:00:35]} e5 {[%clk
00:04:45]} {[%emt 00:03:46]} 40. Kf3 {[%clk 00:05:11]} {[%emt 00:01:32]} f5
{[%clk 00:04:02]} {[%emt 00:01:12]} 41. Ra8 {[%clk 00:04:47]} {[%emt 00:00:54]}
g4+ {[%clk 00:20:10]} {[%emt 00:14:22]} 42. hxg4 {[%clk 00:34:58]} {[%emt
00:00:20]} hxg4+ {[%clk 00:20:21]} {[%emt 00:00:18]} 43. Kg3 {[%clk 00:31:29]}
{[%emt 00:04:00]} Kg5 {[%clk 00:15:49]} {[%emt 00:05:01]} 44. Rg8+ {[%clk
00:31:55]} {[%emt 00:00:05]} Kf6 {[%clk 00:15:45]} {[%emt 00:00:34]} 45. Ra8
{[%clk 00:32:13]} {[%emt 00:00:12]} Ra3+ {[%clk 00:14:02]} {[%emt 00:02:13]} 46.
Kh4 {[%clk 00:32:17]} {[%emt 00:00:26]} g3 {[%clk 00:10:21]} {[%emt 00:04:11]}
47. a7 {[%clk 00:31:43]} {[%emt 00:01:05]} Kg7 {[%clk 00:10:38]} {[%emt
00:00:12]} 48. Kg5 {[%clk 00:27:52]} {[%emt 00:04:21]} f4 {[%clk 00:10:30]}
{[%emt 00:00:38]} 49. Kg4 {[%clk 00:28:19]} {[%emt 00:00:04]} Ra6 {[%clk
00:06:54]} {[%emt 00:04:05]} 50. Kf3 {[%clk 00:24:51]} {[%emt 00:03:57]} Ra3+
{[%clk 00:06:46]} {[%emt 00:00:39]} 51. Kg4 {[%clk 00:25:17]} {[%emt 00:00:04]}
Ra6 {[%clk 00:07:07]} {[%emt 00:00:10]} 52. Kf3 {[%clk 00:25:42]} {[%emt
00:00:04]} 1/2-1/2